[Event "*** Titled Tuesday Blitz"]
[Site "Chess.com"]
[Date "2019.02.05"]
[Round "3"]
[White "mouseWLZ"]
[Black "Mostii"]
[Result "1-0"]
[WhiteElo "2453"]
[BlackElo "2490"]
[TimeControl "180+2"]
[EndTime "13:35:58 PST"]
[Termination "mouseWLZ won by resignation"]

1. e4 {[%clk 0:03:01.9]} 1... e6 {[%clk 0:03:00.8]} 2. d4 {[%clk 0:03:02.7]}
2... d5 {[%clk 0:03:01.9]} 3. Nd2 {[%clk 0:03:03.9]} 3... Nf6 {[%clk 0:03:02.9]}
4. e5 {[%clk 0:03:05.1]} 4... Nfd7 {[%clk 0:03:04.1]} 5. c3 {[%clk 0:03:06.6]}
5... c5 {[%clk 0:03:05.3]} 6. Bd3 {[%clk 0:03:08.2]} 6... b5 {[%clk 0:03:05.9]}
7. Ne2 {[%clk 0:03:05.1]} 7... Qb6 {[%clk 0:03:05.6]} 8. O-O {[%clk 0:03:04.2]}
8... a5 {[%clk 0:03:05.5]} 9. f4 {[%clk 0:02:59.7]} 9... b4 {[%clk 0:03:05.7]}
10. Kh1 {[%clk 0:02:57.7]} 10... g6 {[%clk 0:03:05.9]} 11. Nf3 {[%clk
0:02:54.8]} 11... Ba6 {[%clk 0:03:05.2]} 12. Bxa6 {[%clk 0:02:54]} 12... Nxa6
{[%clk 0:03:07.1]} 13. Be3 {[%clk 0:02:48.1]} 13... Be7 {[%clk 0:03:01.5]} 14.
g4 {[%clk 0:02:44.5]} 14... h5 {[%clk 0:03:01.9]} 15. g5 {[%clk 0:02:43.2]}
15... c4 {[%clk 0:02:57.8]} 16. Nh4 {[%clk 0:02:40]} 16... O-O-O {[%clk
0:02:54.1]} 17. Qa4 {[%clk 0:02:38]} 17... Kb7 {[%clk 0:02:37.2]} 18. Rfc1
{[%clk 0:02:33]} 18... Nc7 {[%clk 0:02:18.4]} 19. b3 {[%clk 0:02:27]} 19... Qa6
{[%clk 0:01:21]} 20. bxc4 {[%clk 0:02:19.6]} 20... Nb6 {[%clk 0:01:22]} 21. Qb3
{[%clk 0:02:07.3]} 21... dxc4 {[%clk 0:01:14.9]} 22. Qd1 {[%clk 0:02:03.6]}
22... Nbd5 {[%clk 0:01:12.4]} 23. Bd2 {[%clk 0:02:02]} 23... Qc6 {[%clk
0:01:03.8]} 24. Kg1 {[%clk 0:02:03]} 24... Nb5 {[%clk 0:00:57.2]} 25. Rab1
{[%clk 0:01:46.3]} 25... Ra8 {[%clk 0:00:35.7]} 26. a4 {[%clk 0:01:32]} 26...
Nbc7 {[%clk 0:00:31.5]} 27. Ng3 {[%clk 0:01:28]} 27... b3 {[%clk 0:00:30.6]} 28.
Qe2 {[%clk 0:01:27.6]} 28... Qxa4 {[%clk 0:00:27.8]} 29. Ne4 {[%clk 0:01:28.8]}
29... Qc6 {[%clk 0:00:26.2]} 30. Nf3 {[%clk 0:01:27.5]} 30... a4 {[%clk
0:00:27]} 31. Nd6+ {[%clk 0:01:29]} 31... Bxd6 {[%clk 0:00:27.7]} 32. exd6
{[%clk 0:01:30.9]} 32... Qxd6 {[%clk 0:00:29.2]} 33. Qxc4 {[%clk 0:01:30.1]}
33... Qc6 {[%clk 0:00:29.7]} 34. Qd3 {[%clk 0:01:18.7]} 34... Nb6 {[%clk
0:00:22.5]} 35. Ne5 {[%clk 0:01:16.8]} 35... Qe8 {[%clk 0:00:18.2]} 36. c4
{[%clk 0:01:13.8]} 36... Qe7 {[%clk 0:00:11.3]} 37. Qe4+ {[%clk 0:01:14.3]}
37... Ncd5 {[%clk 0:00:09.8]} 38. cxd5 {[%clk 0:01:13.8]} 38... exd5 {[%clk
0:00:11.7]} 39. Qd3 {[%clk 0:01:12.9]} 39... Rhc8 {[%clk 0:00:11.5]} 40. Qb5
{[%clk 0:01:13.1]} 40... Qd6 {[%clk 0:00:09]} 41. Bb4 {[%clk 0:01:11.6]} 41...
Qe6 {[%clk 0:00:10]} 42. Bc5 {[%clk 0:01:06.8]} 42... Ra6 {[%clk 0:00:10.9]} 43.
Bxb6 {[%clk 0:01:07.9]} 43... Rxb6 {[%clk 0:00:12.8]} 44. Qxa4 {[%clk
0:01:07.8]} 44... Rxc1+ {[%clk 0:00:13.1]} 45. Rxc1 {[%clk 0:01:09.5]} 45... b2
{[%clk 0:00:14.4]} 46. Rb1 {[%clk 0:01:10.4]} 46... Qh3 {[%clk 0:00:15.5]} 47.
Qd7+ {[%clk 0:01:10]} 47... Qxd7 {[%clk 0:00:16.6]} 48. Nxd7 {[%clk 0:01:11.9]}
48... Rb3 {[%clk 0:00:16.2]} 49. Nc5+ {[%clk 0:01:12.9]} 1-0

[Event "*** Titled Tuesday Blitz"]
[Site "Chess.com"]
[Date "2019.02.05"]
[Round "3"]
[White "GeorgMeier"]
[Black "gmcorrales"]
[Result "0-1"]
[WhiteElo "2835"]
[BlackElo "2743"]
[TimeControl "180+2"]
[EndTime "13:36:00 PST"]
[Termination "gmcorrales won by resignation"]

1. Nf3 {[%clk 0:03:01.9]} 1... Nf6 {[%clk 0:02:59.2]} 2. g3 {[%clk 0:03:03.4]}
2... g6 {[%clk 0:03:00.1]} 3. Bg2 {[%clk 0:03:04.8]} 3... Bg7 {[%clk 0:02:59.4]}
4. O-O {[%clk 0:03:06.3]} 4... d5 {[%clk 0:03:00]} 5. d4 {[%clk 0:03:06.4]} 5...
O-O {[%clk 0:03:00.6]} 6. c4 {[%clk 0:03:08]} 6... c6 {[%clk 0:03:00.6]} 7. cxd5
{[%clk 0:03:08.5]} 7... cxd5 {[%clk 0:03:01.2]} 8. Nc3 {[%clk 0:03:10.4]} 8...
Nc6 {[%clk 0:03:01.8]} 9. Ne5 {[%clk 0:03:11.5]} 9... e6 {[%clk 0:02:41]} 10.
Bg5 {[%clk 0:03:11.1]} 10... h6 {[%clk 0:02:40]} 11. Nxc6 {[%clk 0:03:08.7]}
11... bxc6 {[%clk 0:02:39.4]} 12. Bf4 {[%clk 0:03:10.6]} 12... Re8 {[%clk
0:02:21.6]} 13. Rc1 {[%clk 0:03:10.6]} 13... Nd7 {[%clk 0:02:13.4]} 14. Qd2
{[%clk 0:03:06.1]} 14... Kh7 {[%clk 0:02:12.4]} 15. e4 {[%clk 0:02:55.3]} 15...
Ba6 {[%clk 0:02:06.3]} 16. Rfd1 {[%clk 0:02:56.1]} 16... Rc8 {[%clk 0:02:06.9]}
17. b3 {[%clk 0:02:54.7]} 17... Nb6 {[%clk 0:02:02.5]} 18. h4 {[%clk 0:02:46.8]}
18... Qd7 {[%clk 0:01:17]} 19. Be3 {[%clk 0:02:10.3]} 19... Qe7 {[%clk
0:01:11.2]} 20. Qc2 {[%clk 0:01:26.7]} 20... Kh8 {[%clk 0:01:10]} 21. Qd2 {[%clk
0:00:53.2]} 21... Kh7 {[%clk 0:01:10.5]} 22. Bf4 {[%clk 0:00:54.4]} 22... Red8
{[%clk 0:01:11.3]} 23. Qe1 {[%clk 0:00:48.7]} 23... Qa3 {[%clk 0:00:53.2]} 24.
Rc2 {[%clk 0:00:45.5]} 24... c5 {[%clk 0:00:49.1]} 25. exd5 {[%clk 0:00:38.7]}
25... Nxd5 {[%clk 0:00:39.4]} 26. Nxd5 {[%clk 0:00:34.9]} 26... exd5 {[%clk
0:00:40.5]} 27. dxc5 {[%clk 0:00:35.2]} 27... d4 {[%clk 0:00:39.2]} 28. Qe7
{[%clk 0:00:32.4]} 28... d3 {[%clk 0:00:39.3]} 29. Rcd2 {[%clk 0:00:33.4]} 29...
Kg8 {[%clk 0:00:33.7]} 30. Bd6 {[%clk 0:00:31.1]} 30... Bf8 {[%clk 0:00:33.6]}
31. Qxa7 {[%clk 0:00:30.2]} 31... Bxd6 {[%clk 0:00:34.4]} 32. cxd6 {[%clk
0:00:30.9]} 32... Qxd6 {[%clk 0:00:36.3]} 33. Be4 {[%clk 0:00:31.3]} 33... Rc3
{[%clk 0:00:35.9]} 34. Qe3 {[%clk 0:00:29.5]} 34... Kg7 {[%clk 0:00:36.9]} 35.
Bf3 {[%clk 0:00:26.2]} 35... Bb5 {[%clk 0:00:38]} 36. Kg2 {[%clk 0:00:27.1]}
36... Re8 {[%clk 0:00:39]} 37. Qf4 {[%clk 0:00:27.4]} 37... Qxf4 {[%clk
0:00:37.7]} 38. gxf4 {[%clk 0:00:29.3]} 38... Kf6 {[%clk 0:00:38.5]} 39. Kg3
{[%clk 0:00:30.2]} 39... h5 {[%clk 0:00:39.4]} 40. a4 {[%clk 0:00:30.2]} 40...
Ba6 {[%clk 0:00:40.4]} 41. b4 {[%clk 0:00:31.4]} 41... Bc4 {[%clk 0:00:41.9]}
42. Ra1 {[%clk 0:00:32]} 42... Rc2 {[%clk 0:00:42.1]} 43. Rdd1 {[%clk
0:00:31.9]} 43... d2 {[%clk 0:00:42.1]} 44. b5 {[%clk 0:00:33.2]} 44... Rb2
{[%clk 0:00:42.6]} 45. b6 {[%clk 0:00:33.7]} 45... Bb3 {[%clk 0:00:42.5]} 46.
Rdb1 {[%clk 0:00:32.8]} 46... Rxb1 {[%clk 0:00:39]} 47. Rxb1 {[%clk 0:00:34.7]}
47... Bxa4 {[%clk 0:00:38.7]} 48. b7 {[%clk 0:00:36]} 48... Rb8 {[%clk
0:00:39.3]} 49. Bd5 {[%clk 0:00:37.5]} 49... d1=Q {[%clk 0:00:39.7]} 0-1

[Event "*** Titled Tuesday Blitz"]
[Site "Chess.com"]
[Date "2019.02.05"]
[Round "3"]
[White "ChristopherYoo"]
[Black "Caisachess"]
[Result "1-0"]
[WhiteElo "2652"]
[BlackElo "2385"]
[TimeControl "180+2"]
[EndTime "13:36:00 PST"]
[Termination "ChristopherYoo won by checkmate"]

1. e4 {[%clk 0:03:01.9]} 1... e5 {[%clk 0:03:00.4]} 2. Nf3 {[%clk 0:03:02.5]}
2... Nc6 {[%clk 0:03:01.1]} 3. Bc4 {[%clk 0:03:01.1]} 3... Bc5 {[%clk
0:03:01.7]} 4. O-O {[%clk 0:03:01.5]} 4... Nf6 {[%clk 0:03:02.5]} 5. d3 {[%clk
0:03:02.5]} 5... d6 {[%clk 0:02:59]} 6. h3 {[%clk 0:03:03.3]} 6... O-O {[%clk
0:02:57.6]} 7. c3 {[%clk 0:03:00.6]} 7... Ne7 {[%clk 0:02:52]} 8. a4 {[%clk
0:02:54.1]} 8... a5 {[%clk 0:02:51.7]} 9. Na3 {[%clk 0:02:54.2]} 9... Ng6 {[%clk
0:02:49]} 10. Nc2 {[%clk 0:02:55]} 10... Bb6 {[%clk 0:02:43.6]} 11. Be3 {[%clk
0:02:53.5]} 11... c6 {[%clk 0:02:41.3]} 12. Re1 {[%clk 0:02:07.9]} 12... Re8
{[%clk 0:02:37.6]} 13. b4 {[%clk 0:01:47.1]} 13... d5 {[%clk 0:02:17.8]} 14. Bb3
{[%clk 0:01:42.1]} 14... dxe4 {[%clk 0:02:04]} 15. Bxb6 {[%clk 0:01:28.5]} 15...
Qxb6 {[%clk 0:02:03.1]} 16. Ng5 {[%clk 0:01:29.6]} 16... Re7 {[%clk 0:01:59.7]}
17. dxe4 {[%clk 0:01:23.5]} 17... h6 {[%clk 0:01:51.6]} 18. Nf3 {[%clk
0:01:20.1]} 18... Nf4 {[%clk 0:01:41.9]} 19. Qd6 {[%clk 0:01:04.8]} 19... Rd7
{[%clk 0:01:14.6]} 20. Qxe5 {[%clk 0:01:05.5]} 20... Nd3 {[%clk 0:01:13.9]} 21.
Qg3 {[%clk 0:01:06.4]} 21... Nxe1 {[%clk 0:01:13.9]} 22. Rxe1 {[%clk 0:01:08.3]}
22... Re7 {[%clk 0:01:07.3]} 23. e5 {[%clk 0:00:43.8]} 23... Nh7 {[%clk
0:00:59.8]} 24. Qh4 {[%clk 0:00:39.4]} 24... Qc7 {[%clk 0:00:57]} 25. Ncd4
{[%clk 0:00:37.3]} 25... Nf8 {[%clk 0:00:40.9]} 26. Bc2 {[%clk 0:00:27.6]} 26...
axb4 {[%clk 0:00:37.3]} 27. cxb4 {[%clk 0:00:26.9]} 27... Be6 {[%clk 0:00:33.1]}
28. Qe4 {[%clk 0:00:22.6]} 28... Bd5 {[%clk 0:00:30.2]} 29. Qg4 {[%clk
0:00:23.2]} 29... Be6 {[%clk 0:00:25.6]} 30. Bf5 {[%clk 0:00:18.7]} 30... Rd8
{[%clk 0:00:20.3]} 31. Bxe6 {[%clk 0:00:14.3]} 31... Nxe6 {[%clk 0:00:21.3]} 32.
Nf5 {[%clk 0:00:15.1]} 32... Ree8 {[%clk 0:00:22.7]} 33. Nxh6+ {[%clk
0:00:15.7]} 33... Kf8 {[%clk 0:00:23.5]} 34. Nf5 {[%clk 0:00:15.4]} 34... Qd7
{[%clk 0:00:21.4]} 35. Nd6 {[%clk 0:00:14.3]} 35... Re7 {[%clk 0:00:21.5]} 36.
Nh4 {[%clk 0:00:13.9]} 36... Nc7 {[%clk 0:00:20.2]} 37. Nhf5 {[%clk 0:00:14.2]}
37... Qe6 {[%clk 0:00:19.4]} 38. Qxg7# {[%clk 0:00:15]} 1-0

[Event "*** Titled Tuesday Blitz"]
[Site "Chess.com"]
[Date "2019.02.05"]
[Round "3"]
[White "SolidAsARook"]
[Black "BvsN"]
[Result "0-1"]
[WhiteElo "2188"]
[BlackElo "2301"]
[TimeControl "180+2"]
[EndTime "13:36:00 PST"]
[Termination "BvsN won by resignation"]

1. c4 {[%clk 0:03:01.9]} 1... e5 {[%clk 0:03:00.5]} 2. g3 {[%clk 0:03:02.6]}
2... c6 {[%clk 0:03:01.6]} 3. d4 {[%clk 0:03:02.1]} 3... e4 {[%clk 0:03:01.1]}
4. Bg2 {[%clk 0:03:02]} 4... d5 {[%clk 0:03:02.3]} 5. Nc3 {[%clk 0:03:03]} 5...
Bb4 {[%clk 0:02:56.7]} 6. Qb3 {[%clk 0:02:56.1]} 6... Bxc3+ {[%clk 0:02:55.2]}
7. bxc3 {[%clk 0:02:50.2]} 7... dxc4 {[%clk 0:02:49.4]} 8. Qxc4 {[%clk
0:02:52.1]} 8... Be6 {[%clk 0:02:50.3]} 9. Qb4 {[%clk 0:02:44.4]} 9... Qb6
{[%clk 0:02:24.6]} 10. Ba3 {[%clk 0:02:31.3]} 10... Qxb4 {[%clk 0:02:23.5]} 11.
Bxb4 {[%clk 0:02:32]} 11... Nf6 {[%clk 0:02:21.8]} 12. Nh3 {[%clk 0:02:24.2]}
12... Nbd7 {[%clk 0:02:07.7]} 13. Nf4 {[%clk 0:02:06]} 13... Bc4 {[%clk
0:02:06.6]} 14. h4 {[%clk 0:01:27.7]} 14... Nb6 {[%clk 0:02:02]} 15. f3 {[%clk
0:00:43.7]} 15... e3 {[%clk 0:01:59.5]} 16. Nd3 {[%clk 0:00:34.8]} 16... Bxd3
{[%clk 0:01:20.6]} 17. exd3 {[%clk 0:00:33.5]} 17... Nbd5 {[%clk 0:01:21.8]} 18.
Rb1 {[%clk 0:00:26.1]} 18... a5 {[%clk 0:01:04.5]} 19. Ba3 {[%clk 0:00:18.3]}
19... b5 {[%clk 0:01:04.1]} 20. c4 {[%clk 0:00:16.1]} 20... Nc3 {[%clk
0:01:04.6]} 21. Rb2 {[%clk 0:00:14.4]} 21... b4 {[%clk 0:01:04.1]} 22. Rc2
{[%clk 0:00:15.7]} 22... Kd7 {[%clk 0:00:51.8]} 23. Bc1 {[%clk 0:00:16.8]} 23...
Rhe8 {[%clk 0:00:49.4]} 24. O-O {[%clk 0:00:17.6]} 24... Nh5 {[%clk 0:00:43.2]}
25. Kh2 {[%clk 0:00:18.1]} 25... f5 {[%clk 0:00:43.8]} 26. Re1 {[%clk
0:00:19.3]} 26... e2 {[%clk 0:00:37.1]} 27. Bh3 {[%clk 0:00:20.2]} 27... g6
{[%clk 0:00:36.4]} 28. g4 {[%clk 0:00:20.6]} 28... Ng7 {[%clk 0:00:30.6]} 29.
Bd2 {[%clk 0:00:20.9]} 29... Rab8 {[%clk 0:00:22.2]} 30. Bh6 {[%clk 0:00:21.7]}
30... fxg4 {[%clk 0:00:21.3]} 31. Bxg4+ {[%clk 0:00:21.5]} 31... Nf5 {[%clk
0:00:21.7]} 32. Bd2 {[%clk 0:00:17.9]} 32... Kd6 {[%clk 0:00:22.6]} 33. Bxf5
{[%clk 0:00:18.3]} 33... gxf5 {[%clk 0:00:23.4]} 34. Bxc3 {[%clk 0:00:19.7]}
34... bxc3 {[%clk 0:00:23.6]} 35. Rxc3 {[%clk 0:00:21]} 35... Rb2 {[%clk
0:00:24.2]} 36. Kg3 {[%clk 0:00:22]} 36... Rxa2 {[%clk 0:00:25.4]} 37. Kf4
{[%clk 0:00:22.7]} 37... Rd2 {[%clk 0:00:24.1]} 38. Rb3 {[%clk 0:00:23.3]} 38...
Rd1 {[%clk 0:00:24.7]} 0-1

[Event "*** Titled Tuesday Blitz"]
[Site "Chess.com"]
[Date "2019.02.05"]
[Round "3"]
[White "m3alam"]
[Black "julinha97"]
[Result "1-0"]
[WhiteElo "2157"]
[BlackElo "2081"]
[TimeControl "180+2"]
[EndTime "13:36:02 PST"]
[Termination "m3alam won by resignation"]

1. d4 {[%clk 0:03:01.9]} 1... Nf6 {[%clk 0:03:00.5]} 2. Nf3 {[%clk 0:03:01.7]}
2... g6 {[%clk 0:03:01.6]} 3. g3 {[%clk 0:03:03.6]} 3... Bg7 {[%clk 0:03:02.9]}
4. Bg2 {[%clk 0:03:04.5]} 4... d6 {[%clk 0:03:04.3]} 5. O-O {[%clk 0:03:05.4]}
5... O-O {[%clk 0:03:05.3]} 6. c4 {[%clk 0:03:07.3]} 6... Nc6 {[%clk 0:03:03.2]}
7. Nc3 {[%clk 0:03:07.8]} 7... a6 {[%clk 0:03:03]} 8. b3 {[%clk 0:03:08.7]} 8...
Rb8 {[%clk 0:02:46.5]} 9. Nd5 {[%clk 0:03:09.3]} 9... Nxd5 {[%clk 0:02:06.7]}
10. cxd5 {[%clk 0:03:08.6]} 10... Nb4 {[%clk 0:02:07.9]} 11. e4 {[%clk
0:02:34.3]} 11... f5 {[%clk 0:02:04.9]} 12. Ng5 {[%clk 0:02:19.2]} 12... c5
{[%clk 0:01:58.7]} 13. a3 {[%clk 0:02:14.1]} 13... Bxd4 {[%clk 0:01:50.9]} 14.
Rb1 {[%clk 0:01:26.5]} 14... Na2 {[%clk 0:01:46.5]} 15. Bd2 {[%clk 0:01:19.6]}
15... Nc3 {[%clk 0:01:37.7]} 16. Bxc3 {[%clk 0:01:18.7]} 16... Bxc3 {[%clk
0:01:39.6]} 17. Ne6 {[%clk 0:01:13]} 17... Bxe6 {[%clk 0:01:37.5]} 18. dxe6
{[%clk 0:01:13.4]} 18... fxe4 {[%clk 0:01:35.6]} 19. Bxe4 {[%clk 0:01:12.2]}
19... Bd4 {[%clk 0:01:33.8]} 20. Qg4 {[%clk 0:01:10.2]} 20... Rf6 {[%clk
0:01:30.4]} 21. h4 {[%clk 0:01:10.7]} 21... Qf8 {[%clk 0:01:29.7]} 22. h5 {[%clk
0:00:51]} 22... Rxf2 {[%clk 0:01:26.8]} 23. Rxf2 {[%clk 0:00:43.9]} 23... Qxf2+
{[%clk 0:01:26.9]} 24. Kh1 {[%clk 0:00:44.5]} 24... Qf6 {[%clk 0:01:05]} 25.
hxg6 {[%clk 0:00:43.3]} 25... h6 {[%clk 0:00:55.7]} 26. Kg2 {[%clk 0:00:39.5]}
26... Qf2+ {[%clk 0:00:55.5]} 27. Kh3 {[%clk 0:00:38.6]} 27... Kg7 {[%clk
0:00:56]} 28. Qh4 {[%clk 0:00:32.9]} 28... Bf6 {[%clk 0:00:52.8]} 29. Qg4 {[%clk
0:00:32.3]} 29... Bg5 {[%clk 0:00:44.1]} 30. Bd3 {[%clk 0:00:28.7]} 30... b5
{[%clk 0:00:42.4]} 31. Rf1 {[%clk 0:00:28.7]} 31... Qd4 {[%clk 0:00:35.4]} 32.
Rf7+ {[%clk 0:00:29.4]} 32... Kg8 {[%clk 0:00:37.1]} 33. g7 {[%clk 0:00:25.3]}
33... Qa1 {[%clk 0:00:31.2]} 34. Qe4 {[%clk 0:00:20.3]} 34... Qxg7 {[%clk
0:00:16.9]} 35. Rxg7+ {[%clk 0:00:20.1]} 35... Kxg7 {[%clk 0:00:18.8]} 36. Qg6+
{[%clk 0:00:21.1]} 1-0

[Event "*** Titled Tuesday Blitz"]
[Site "Chess.com"]
[Date "2019.02.05"]
[Round "3"]
[White "Supelyel"]
[Black "AttilaTurzo"]
[Result "0-1"]
[WhiteElo "2323"]
[BlackElo "2383"]
[TimeControl "180+2"]
[EndTime "13:36:03 PST"]
[Termination "AttilaTurzo won by resignation"]

1. c4 {[%clk 0:03:01.9]} 1... c6 {[%clk 0:02:59.4]} 2. Nf3 {[%clk 0:02:58]} 2...
d5 {[%clk 0:03:01.3]} 3. b3 {[%clk 0:02:59]} 3... Bg4 {[%clk 0:03:00.8]} 4. e3
{[%clk 0:02:54.5]} 4... Nd7 {[%clk 0:03:00.8]} 5. Bb2 {[%clk 0:02:54.4]} 5...
Ngf6 {[%clk 0:03:01.7]} 6. h3 {[%clk 0:02:51.4]} 6... Bh5 {[%clk 0:03:02.2]} 7.
d4 {[%clk 0:02:43.7]} 7... e6 {[%clk 0:03:01.9]} 8. Nbd2 {[%clk 0:02:44.8]} 8...
Ne4 {[%clk 0:02:56.9]} 9. Be2 {[%clk 0:02:39.4]} 9... Bb4 {[%clk 0:02:42.6]} 10.
g4 {[%clk 0:01:55.8]} 10... Bg6 {[%clk 0:02:40.4]} 11. Rc1 {[%clk 0:01:41.8]}
11... Qa5 {[%clk 0:02:34.8]} 12. a3 {[%clk 0:01:42.7]} 12... Bd6 {[%clk
0:02:00.7]} 13. b4 {[%clk 0:01:36.1]} 13... Qd8 {[%clk 0:02:00.4]} 14. c5 {[%clk
0:01:36.3]} 14... Bc7 {[%clk 0:01:53]} 15. h4 {[%clk 0:01:02.2]} 15... h6 {[%clk
0:01:44.9]} 16. Ne5 {[%clk 0:00:59.4]} 16... Nxe5 {[%clk 0:01:41.1]} 17. dxe5
{[%clk 0:01:01.3]} 17... O-O {[%clk 0:01:26]} 18. Nxe4 {[%clk 0:00:36.1]} 18...
Bxe4 {[%clk 0:01:25.9]} 19. f3 {[%clk 0:00:37.3]} 19... Bh7 {[%clk 0:01:22.6]}
20. Kf2 {[%clk 0:00:33.4]} 20... f6 {[%clk 0:01:16]} 21. exf6 {[%clk 0:00:33.8]}
21... gxf6 {[%clk 0:01:17.9]} 22. g5 {[%clk 0:00:27.4]} 22... Be5 {[%clk
0:01:12.6]} 23. gxh6 {[%clk 0:00:19.5]} 23... Kh8 {[%clk 0:01:05.5]} 24. Qd2
{[%clk 0:00:20.6]} 24... Bxb2 {[%clk 0:01:03.1]} 25. Qxb2 {[%clk 0:00:22.5]}
25... e5 {[%clk 0:01:04.6]} 26. Rcg1 {[%clk 0:00:23.2]} 26... Rf7 {[%clk
0:00:57.5]} 27. f4 {[%clk 0:00:23.9]} 27... Qe7 {[%clk 0:00:58.3]} 28. fxe5
{[%clk 0:00:24.7]} 28... fxe5+ {[%clk 0:00:59]} 29. Ke1 {[%clk 0:00:25.9]} 29...
Raf8 {[%clk 0:00:49.6]} 30. Rg5 {[%clk 0:00:26.4]} 30... Rf5 {[%clk 0:00:39.6]}
31. Rhg1 {[%clk 0:00:27.8]} 31... Qf6 {[%clk 0:00:31.9]} 32. Qc3 {[%clk
0:00:25.5]} 32... d4 {[%clk 0:00:27.3]} 33. exd4 {[%clk 0:00:20.7]} 33... exd4
{[%clk 0:00:28.2]} 34. Qg3 {[%clk 0:00:22.4]} 34... Qxh6 {[%clk 0:00:22.1]} 35.
Qc7 {[%clk 0:00:17.5]} 35... R5f7 {[%clk 0:00:17]} 36. Qe5+ {[%clk 0:00:17.6]}
36... Qf6 {[%clk 0:00:18.4]} 37. Qg3 {[%clk 0:00:18.2]} 37... Re7 {[%clk
0:00:17.5]} 38. Kd1 {[%clk 0:00:19.3]} 38... d3 {[%clk 0:00:17.7]} 39. Bh5
{[%clk 0:00:19.5]} 39... Qa1+ {[%clk 0:00:18]} 40. Kd2 {[%clk 0:00:19.1]} 40...
Qb2+ {[%clk 0:00:19]} 0-1

[Event "*** Titled Tuesday Blitz"]
[Site "Chess.com"]
[Date "2019.02.05"]
[Round "3"]
[White "Rodalquilar"]
[Black "SuperCheese"]
[Result "0-1"]
[WhiteElo "2554"]
[BlackElo "2579"]
[TimeControl "180+2"]
[EndTime "13:36:06 PST"]
[Termination "SuperCheese won on time"]

1. e4 {[%clk 0:03:01.9]} 1... e5 {[%clk 0:03:00.5]} 2. Nf3 {[%clk 0:03:02.6]}
2... Nc6 {[%clk 0:02:57.8]} 3. Bc4 {[%clk 0:02:59.9]} 3... Bc5 {[%clk
0:02:58.3]} 4. c3 {[%clk 0:02:55.6]} 4... Nf6 {[%clk 0:02:56.5]} 5. d3 {[%clk
0:02:55.4]} 5... d6 {[%clk 0:02:57.1]} 6. Bb3 {[%clk 0:02:53.3]} 6... Bb6 {[%clk
0:02:57.5]} 7. Nbd2 {[%clk 0:02:52.1]} 7... Ne7 {[%clk 0:02:54.8]} 8. h3 {[%clk
0:02:38]} 8... c6 {[%clk 0:02:54.2]} 9. O-O {[%clk 0:02:37.1]} 9... O-O {[%clk
0:02:53.8]} 10. d4 {[%clk 0:02:33.7]} 10... Ng6 {[%clk 0:02:50]} 11. Re1 {[%clk
0:02:34.7]} 11... Re8 {[%clk 0:02:43.3]} 12. a4 {[%clk 0:02:14.1]} 12... h6
{[%clk 0:02:32.6]} 13. Nc4 {[%clk 0:02:08]} 13... Bc7 {[%clk 0:02:20.2]} 14.
dxe5 {[%clk 0:02:00.9]} 14... dxe5 {[%clk 0:02:20.2]} 15. Qc2 {[%clk 0:01:59.9]}
15... Be6 {[%clk 0:02:07.8]} 16. Rd1 {[%clk 0:01:20.3]} 16... Qe7 {[%clk
0:01:56.1]} 17. a5 {[%clk 0:01:21.5]} 17... b5 {[%clk 0:01:44.2]} 18. axb6
{[%clk 0:00:55.7]} 18... axb6 {[%clk 0:01:46.1]} 19. Rxa8 {[%clk 0:00:57.5]}
19... Rxa8 {[%clk 0:01:41.8]} 20. Be3 {[%clk 0:00:43.8]} 20... b5 {[%clk
0:01:24.9]} 21. Ncd2 {[%clk 0:00:44.6]} 21... Nh5 {[%clk 0:01:09.9]} 22. Bxe6
{[%clk 0:00:43.5]} 22... Qxe6 {[%clk 0:01:11.8]} 23. Nb3 {[%clk 0:00:44]} 23...
Rd8 {[%clk 0:00:45.9]} 24. Nc5 {[%clk 0:00:44.4]} 24... Qe7 {[%clk 0:00:44.5]}
25. b4 {[%clk 0:00:42.4]} 25... Nhf4 {[%clk 0:00:42.6]} 26. Kh2 {[%clk
0:00:41.9]} 26... Bd6 {[%clk 0:00:39.5]} 27. Ra1 {[%clk 0:00:32]} 27... Kh7
{[%clk 0:00:28.7]} 28. Qa2 {[%clk 0:00:28.5]} 28... Qf6 {[%clk 0:00:21.5]} 29.
Nd2 {[%clk 0:00:14.3]} 29... Bxc5 {[%clk 0:00:21.4]} 30. Bxc5 {[%clk 0:00:13.2]}
30... Nd3 {[%clk 0:00:23]} 31. Nf3 {[%clk 0:00:11.6]} 31... Nxc5 {[%clk
0:00:22.9]} 32. bxc5 {[%clk 0:00:13.5]} 32... Qf4+ {[%clk 0:00:24.1]} 33. Kh1
{[%clk 0:00:13.8]} 33... Rd7 {[%clk 0:00:23.1]} 34. Qd2 {[%clk 0:00:13.3]} 34...
Rxd2 {[%clk 0:00:22.9]} 0-1